bitfinex-derivatives/quotes_SOLF0:USTF0_20260220
["timestamp","ask_amount","ask_price","bid_price","bid_amount"]
[1771565658666,5.29370122,83.469,83.391,5.53496523]
[1771565658861,9.24159399,83.47,83.405,16.33046523]
[1771565658862,5.29370122,83.466,83.405,16.33046523]
[1771565659765,5.29370122,83.46,83.393,10.797]
[1771565660067,5.29370122,83.449,83.389,5.53496523]
[1771565660462,5.29370122,83.444,83.382,10.7984]
[1771565660869,5.29370122,83.444,83.382,16.33336523]
[1771565661067,5.29370122,83.444,83.397,10.7965]
[1771565661266,5.29370122,83.46,83.398,5.53496523]
[1771565661465,342.6435,83.549,83.411,5.53496523]
[1771565661466,5.29370122,83.473,83.411,5.53496523]
[1771565661764,5.29370122,83.473,83.405,5.53496523]
[1771565661969,5.29370122,83.469,83.405,5.53496523]
[1771565662162,10.7875,83.467,83.411,10.7947]
[1771565662465,9.24159399,83.47,83.411,10.7947]
[1771565662466,5.29370122,83.466,83.411,10.7947]
[1771565662665,5.29370122,83.466,83.405,5.53496523]
[1771565663067,5.29370122,83.466,83.412,10.7946]
[1771565663264,5.29370122,83.466,83.405,5.53496523]
[1771565664463,5.29370122,83.499,83.421,5.53496523]
[1771565665770,5.29370122,83.497,83.421,5.53496523]
[1771565665966,5.29370122,83.479,83.421,5.53496523]
[1771565666367,5.29370122,83.499,83.421,5.53496523]
[1771565666770,5.29370122,83.499,83.431,5.53496523]
[1771565667174,2.252e-05,83.503,83.451,5.53496523]
[1771565667766,2.252e-05,83.503,83.472,5.53496523]
[1771565667970,2.08408817,83.565,83.45,9.24159399]
[1771565667971,5.29370122,83.57,83.491,5.53496523]
[1771565668178,5.29370122,83.592,83.511,5.53496523]
[1771565668566,5.29370122,83.611,83.531,5.53496523]
[1771565669075,5.29370122,83.611,83.55,9.24159399]
[1771565669272,5.29370122,83.599,83.528,5.53496523]
[1771565669471,5.29370122,83.599,83.475,167.7891]
[1771565669472,5.29370122,83.599,83.531,5.53496523]
[1771565669676,5.29370122,83.599,83.534,5.53496523]
[1771565669974,9.24159399,83.61,83.534,5.53496523]
[1771565670174,5.29370122,83.609,83.534,5.53496523]
[1771565670374,0.33370122,83.609,83.534,5.53496523]
[1771565670677,10.7693,83.608,83.537,5.53496523]
[1771565671071,9.24159399,83.62,83.537,5.53496523]
[1771565671276,9.24159399,83.62,83.541,5.53496523]
[1771565671571,9.24159399,83.6,83.525,5.53496523]
[1771565671770,10.7709,83.597,83.527,5.53496523]
[1771565671978,9.24159399,83.61,83.531,5.53496523]
[1771565672477,10.7707,83.598,83.531,5.53496523]
[1771565672776,5.29370122,83.609,83.551,5.53496523]
[1771565672971,5.29370122,83.629,83.551,5.53496523]
[1771565673370,5.29370122,83.628,83.552,10.7765]
[1771565673577,5.29370122,83.628,83.561,5.53496523]
[1771565673979,5.29370122,83.65,83.587,5.53496523]
[1771565674179,5.29370122,83.689,83.601,5.53496523]
[1771565674476,507.20484506,83.731,83.6,9.24159399]
[1771565674477,507.20484506,83.731,83.661,5.53496523]
[1771565674973,507.20484506,83.731,83.66,9.24159399]
[1771565674974,12.03488653,83.715,83.663,5.53496523]
[1771565675177,12.03488653,83.715,83.62,62.0]
[1771565675178,12.03488653,83.715,83.671,5.53496523]
[1771565675481,5.29370122,83.714,83.621,5.53496523]
[1771565675776,14.53529521,83.71,83.644,5.53496523]
[1771565675971,5.29370122,83.709,83.644,5.53496523]
[1771565676575,9.24159399,83.69,83.624,5.53496523]
[1771565676975,5.36213807,83.689,83.624,5.53496523]
[1771565677975,9.24159399,83.68,83.624,5.53496523]
[1771565678174,9.24159399,83.68,83.601,5.36113422]
[1771565678175,5.36213807,83.679,83.601,5.36113422]
[1771565678378,14.60373206,83.66,83.601,5.36113422]
[1771565678577,5.36213807,83.659,83.581,5.36113422]
[1771565679275,9.24159399,83.64,83.581,5.36113422]
[1771565679486,5.36213807,83.636,83.556,5.36113422]
[1771565680682,5.36213807,83.636,83.559,5.36113422]
[1771565680882,9.24159399,83.62,83.559,5.36113422]
[1771565682581,5.36213807,83.619,83.559,5.36113422]
[1771565682881,5.36213807,83.619,83.54,5.36113422]
[1771565683781,5.36213807,83.599,83.516,5.36113422]
[1771565683983,5.36213807,83.579,83.516,5.36113422]
[1771565684485,5.36213807,83.579,83.498,5.36113422]
[1771565684891,5.36213807,83.579,83.501,5.36113422]
[1771565685083,9.24159399,83.56,83.501,5.36113422]
[1771565685284,9.24159399,83.57,83.501,5.36113422]
[1771565685483,9.24159399,83.57,83.504,5.36113422]
[1771565686382,14.60373206,83.57,83.504,5.36113422]
[1771565686687,5.36213807,83.569,83.504,5.36113422]
[1771565686981,5.36213807,83.609,83.531,5.36113422]
[1771565687186,9.24159399,83.65,83.531,5.36113422]
[1771565687187,5.36213807,83.599,83.531,5.36113422]
[1771565688088,5.36213807,83.597,83.531,5.36113422]
[1771565688285,9.24159399,83.6,83.531,5.36113422]
[1771565689288,5.36213807,83.61,83.531,5.36113422]
[1771565690085,5.36213807,83.599,83.531,5.36113422]
[1771565692884,41.56213807,83.659,83.536,5.36113422]
[1771565693083,5.36213807,83.619,83.536,5.36113422]
[1771565693883,5.36213807,83.619,83.541,5.36113422]
[1771565694588,5.36213807,83.619,83.54,9.20370809]
[1771565694589,5.36213807,83.619,83.543,5.36113422]
[1771565695789,10.7681,83.618,83.55,5.36113422]
[1771565696786,16.13023807,83.618,83.55,5.36113422]
[1771565697086,5.36213807,83.615,83.55,5.36113422]
[1771565698794,10.7698,83.605,83.55,5.36113422]
[1771565699496,5.36213807,83.615,83.551,5.36113422]
[1771565699695,5.36213807,83.634,83.561,5.36113422]
[1771565700294,10.7665,83.63,83.564,16.13603422]
[1771565700592,5.36213807,83.629,83.564,5.36113422]
[1771565700793,5.36213807,83.663,83.584,5.36113422]
[1771565700993,5.36213807,83.663,83.601,5.36113422]
[1771565701196,5.36213807,83.663,83.582,5.36113422]
[1771565701389,5.36213807,83.661,83.582,5.36113422]
[1771565701589,5.36213807,83.661,83.601,5.36113422]
[1771565701889,5.36213807,83.659,83.584,5.36113422]
[1771565702289,5.36213807,83.659,83.591,5.36113422]
[1771565702488,5.36213807,83.658,83.591,5.36113422]
[1771565703087,5.36213807,83.658,83.606,10.7695]
[1771565703289,5.36213807,83.658,83.591,5.36113422]
[1771565704299,5.36213807,83.658,83.606,10.7696]
[1771565704799,5.36213807,83.658,83.591,5.36113422]
[1771565705593,5.36213807,83.658,83.614,10.7685]
[1771565705793,9.20370809,83.68,83.614,10.7685]
[1771565705998,5.67186322,83.675,83.62,10.7677]
[1771565706600,5.67186322,83.692,83.621,5.86653173]
[1771565707396,5.67186322,83.692,83.641,10.765]
[1771565707695,10.7568,83.706,83.638,6.05363828]
[1771565707895,5.59503623,83.704,83.64,6.05363828]
[1771565708095,12.03488653,83.715,83.651,6.05363828]
[1771565708096,5.59503623,83.714,83.651,6.05363828]
[1771565708301,12.03488653,83.715,83.671,6.05363828]
[1771565708595,5.59503623,83.714,83.641,6.05363828]
[1771565708800,5.59503623,83.709,83.641,6.05363828]
[1771565709098,8.653e-05,83.715,83.671,6.05363828]
[1771565710599,5.59512276,83.715,83.651,6.05363828]
[1771565710799,5.59512276,83.715,83.578,167.582]
[1771565710800,5.59503623,83.709,83.631,6.05363828]
[1771565711293,5.59503623,83.709,83.556,21.552]
[1771565711294,5.59503623,83.669,83.601,6.05363828]
[1771565711493,9.20370809,83.65,83.581,6.05363828]
[1771565711699,5.59503623,83.645,83.581,6.05363828]
[1771565712401,5.59503623,83.641,83.581,6.05363828]
[1771565712800,5.59503623,83.659,83.581,6.05363828]
[1771565713902,5.59503623,83.639,83.57,9.20370809]
[1771565714400,5.59503623,83.619,83.541,6.05363828]
[1771565714799,5.59503623,83.619,83.556,6.05363828]
[1771565714995,5.59503623,83.619,83.511,36.2]
[1771565714996,5.59503623,83.619,83.561,6.05363828]
[1771565715202,5.59503623,83.619,83.56,9.20370809]
[1771565715203,5.59503623,83.619,83.565,16.82843828]
[1771565715400,5.59503623,83.619,83.565,6.05363828]
[1771565715797,5.59503623,83.617,83.546,6.05363828]
[1771565715996,14.79874432,83.61,83.546,6.05363828]
[1771565716394,5.59503623,83.609,83.546,6.05363828]
[1771565717105,9.20370809,83.61,83.546,6.05363828]
[1771565717106,5.59503623,83.607,83.546,6.05363828]
[1771565717400,5.59503623,83.625,83.551,6.05363828]
[1771565717599,5.59503623,83.625,83.568,10.7745]
[1771565717800,5.59503623,83.625,83.569,6.05363828]
[1771565718403,5.59503623,83.625,83.551,6.05363828]
[1771565719308,5.59503623,83.625,83.564,6.05363828]
[1771565720506,5.59503623,83.625,83.564,16.82853828]
[1771565720700,5.59503623,83.623,83.564,6.05363828]
[1771565721103,5.59503623,83.639,83.564,6.05363828]
[1771565721809,5.59503623,83.619,83.564,6.05363828]
[1771565722009,5.59503623,83.619,83.55,9.20370809]
[1771565722709,5.59503623,83.618,83.547,6.05363828]
[1771565722910,5.59503623,83.599,83.528,6.05363828]
[1771565723309,9.20370809,83.6,83.515,10.7812]
[1771565723310,5.59503623,83.594,83.515,10.7812]
[1771565723510,5.59503623,83.579,83.515,10.7812]
[1771565724309,5.59503623,83.579,83.522,6.05363828]
[1771565724812,5.59503623,83.6,83.539,6.05363828]
[1771565725312,9.20370809,83.61,83.527,10.7797]
[1771565725313,5.59503623,83.596,83.527,10.7797]
[1771565725912,5.59503623,83.596,83.535,10.7787]
[1771565726315,5.59503623,83.592,83.528,6.05363828]
[1771565726510,5.59503623,83.589,83.528,6.05363828]
[1771565728622,10.7721,83.586,83.528,6.05363828]
[1771565729612,5.59503623,83.581,83.528,6.05363828]
[1771565729816,5.59503623,83.589,83.531,6.05363828]
[1771565730816,5.59503623,83.587,83.531,6.05363828]
[1771565731218,10.7722,83.586,83.531,6.05363828]
[1771565731613,5.59503623,83.586,83.531,6.05363828]
[1771565732223,5.59503623,83.603,83.531,6.05363828]
[1771565732418,5.59503623,83.599,83.531,6.05363828]
[1771565732625,5.59503623,83.599,83.511,6.05363828]
[1771565733122,5.59503623,83.594,83.531,6.05363828]
[1771565733316,5.59503623,83.594,83.51,9.20370809]
[1771565733522,5.59503623,83.583,83.513,6.05363828]
[1771565734223,10.7729,83.581,83.522,6.05363828]
[1771565734520,5.59503623,83.583,83.522,6.05363828]
[1771565736714,16.36913623,83.571,83.522,6.05363828]
[1771565737816,10.7744,83.569,83.522,6.05363828]
[1771565739021,16.68902085,83.569,83.522,6.05363828]
[1771565739221,10.7754,83.561,83.507,5.97456768]
[1771565739518,5.91462085,83.56,83.507,5.97456768]
[1771565739720,10.7773,83.547,83.507,5.97456768]
[1771565740020,10.7773,83.547,83.491,5.97456768]
[1771565740825,16.69252085,83.542,83.491,5.97456768]
[1771565741124,5.91462085,83.541,83.491,5.97456768]
[1771565741325,5.91462085,83.541,83.493,10.7841]
[1771565741820,5.91462085,83.541,83.491,5.97456768]
[1771565742023,9.20370809,83.55,83.491,5.97456768]
[1771565742429,15.11832894,83.55,83.491,5.97456768]
[1771565742626,5.91462085,83.549,83.491,5.97456768]
[1771565742927,16.69162085,83.549,83.491,16.75886768]
[1771565743129,5.91462085,83.548,83.491,5.97456768]
[1771565745124,5.91462085,83.546,83.491,5.97456768]
[1771565745329,5.91462085,83.546,83.49,455.25616915]
[1771565745722,5.91462085,83.546,83.493,5.97456768]
[1771565747630,5.91462085,83.546,83.495,5.97456768]
[1771565748331,10.7789,83.534,83.49,455.25616915]
[1771565749127,5.91462085,83.543,83.49,455.25616915]
[1771565749332,5.91462085,83.559,83.491,5.97456768]
[1771565749931,16.69102085,83.553,83.491,5.97456768]
[1771565750231,5.91462085,83.552,83.491,5.97456768]
[1771565750729,5.91462085,83.552,83.494,5.97456768]
[1771565751232,10.7783,83.539,83.494,5.97456768]
[1771565751432,5.91462085,83.552,83.494,5.97456768]
[1771565751632,10.7782,83.54,83.494,5.97456768]
[1771565751934,5.91462085,83.539,83.494,5.97456768]
[1771565754532,10.7783,83.538,83.49,455.25616915]
[1771565754732,16.69292085,83.538,83.49,455.25616915]
[1771565754934,5.91462085,83.537,83.49,455.25616915]
[1771565756036,10.7802,83.524,83.49,455.25616915]
[1771565756429,5.91462085,83.537,83.49,455.25616915]
[1771565757335,5.91462085,83.552,83.491,5.97456768]
[1771565758338,5.91462085,83.532,83.49,455.25616915]
[1771565759137,5.91462085,83.532,83.477,5.97456768]
[1771565759834,5.91462085,83.532,83.479,5.97456768]
[1771565760034,5.91462085,83.547,83.479,5.97456768]
[1771565760339,10.7785,83.537,83.484,5.97456768]
[1771565760539,5.91462085,83.547,83.484,5.97456768]
[1771565760740,16.69192085,83.547,83.492,5.97456768]
[1771565760935,5.91462085,83.546,83.492,5.97456768]
[1771565762838,10.778,83.541,83.492,5.97456768]
[1771565764340,5.91462085,83.546,83.494,5.83262263]
[1771565765337,5.91462085,83.546,83.501,5.83262263]
[1771565765539,10.7768,83.55,83.501,5.83262263]
[1771565766235,5.80071987,83.56,83.501,5.83262263]
[1771565766436,10.7779,83.542,83.501,5.83262263]
[1771565766638,5.80071987,83.547,83.501,5.83262263]
[1771565767034,5.8833905,83.539,83.46,5.69111961]
[1771565767737,10.7817,83.512,83.46,5.69111961]
[1771565767937,5.8833905,83.511,83.46,5.69111961]
[1771565768140,5.8833905,83.511,83.45,9.21695855]
[1771565768141,5.8833905,83.511,83.442,5.69111961]
[1771565768643,5.8833905,83.498,83.442,5.69111961]
[1771565768841,5.8833905,83.498,83.421,5.69111961]
[1771565769442,5.8833905,83.478,83.421,5.69111961]
[1771565769636,5.8833905,83.478,83.417,469.73112927]
[1771565769947,5.8833905,83.478,83.407,5.69111961]
[1771565770139,5.8833905,83.459,83.392,5.69111961]
[1771565770540,5.8833905,83.459,83.401,5.69111961]
[1771565771548,10.7887,83.458,83.401,5.69111961]
[1771565771845,5.8833905,83.457,83.401,5.69111961]
[1771565772050,5.8833905,83.468,83.402,5.69111961]
[1771565773045,5.8833905,83.464,83.402,5.69111961]
[1771565773240,5.66236,83.464,83.402,5.69111961]
[1771565773942,5.46997305,83.464,83.402,5.69111961]
[1771565774139,10.7894,83.453,83.402,5.69111961]
[1771565775446,9.21695855,83.47,83.402,5.69111961]
[1771565775650,10.7877,83.466,83.402,5.69111961]
[1771565776245,16.6710905,83.466,83.402,5.69111961]
[1771565776450,16.6714905,83.463,83.402,5.69111961]
[1771565776652,5.8833905,83.462,83.402,5.69111961]
[1771565777048,9.21695855,83.45,83.358,5.69111961]
[1771565777355,9.21695855,83.45,83.357,471.13877248]
[1771565777356,5.8833905,83.446,83.374,5.69111961]
[1771565777556,5.8833905,83.446,83.391,5.69111961]
[1771565778246,5.8833905,83.462,83.391,5.69111961]
[1771565778450,16.6721905,83.458,83.393,5.69111961]
[1771565778651,5.8833905,83.457,83.393,5.69111961]
[1771565779654,5.8833905,83.455,83.393,5.69111961]
[1771565780256,16.6740905,83.443,83.393,5.69111961]
[1771565780455,5.8833905,83.442,83.393,5.69111961]
[1771565780953,5.8833905,83.439,83.376,5.69111961]
[1771565781654,5.8833905,83.436,83.376,5.69111961]
[1771565782351,5.8833905,83.436,83.378,5.69111961]
[1771565784454,5.8833905,83.433,83.378,5.69111961]
[1771565785548,10.7921,83.432,83.378,5.69111961]
[1771565785751,5.8833905,83.431,83.378,5.69111961]
[1771565786259,5.8833905,83.427,83.358,5.69111961]
[1771565786655,16.6781905,83.411,83.358,5.69111961]
[1771565787056,5.8833905,83.41,83.358,5.69111961]
[1771565787254,5.8833905,83.406,83.346,10.8031]
[1771565787461,5.8833905,83.406,83.343,5.69111961]
[1771565787760,5.8833905,83.406,83.321,5.69111961]
[1771565788154,5.86046435,83.406,83.321,5.69111961]
[1771565788652,10.7972,83.392,83.326,5.69111961]
[1771565789157,9.21695855,83.41,83.326,5.69111961]
[1771565789962,9.21695855,83.42,83.341,5.69111961]
[1771565790154,5.8833905,83.419,83.341,5.69111961]
[1771565790453,16.6788905,83.406,83.343,5.69111961]
[1771565790654,5.8833905,83.405,83.343,5.69111961]
[1771565791054,10.7964,83.399,83.343,5.69111961]
[1771565792255,5.8833905,83.393,83.343,5.69111961]
[1771565792655,31.41290744,83.454,83.34,9.21695855]
[1771565792656,5.8833905,83.419,83.344,5.69111961]
[1771565793758,10.7949,83.41,83.357,5.69111961]
[1771565794257,5.8833905,83.419,83.361,5.69111961]
[1771565798763,5.91553003,83.418,83.361,5.69111961]
[1771565799964,5.91553003,83.416,83.361,5.69111961]
[1771565802164,5.91553003,83.412,83.361,5.69111961]
[1771565804763,5.91553003,83.412,83.365,16.54578707]
[1771565804961,5.91553003,83.412,83.366,5.74518707]
[1771565805771,10.7934,83.422,83.37,5.74518707]
[1771565806669,10.7934,83.422,83.371,10.7998]
[1771565806870,16.70893003,83.422,83.372,5.74518707]
[1771565807075,10.7939,83.418,83.372,5.74518707]
[1771565808272,16.70943003,83.418,83.372,5.74518707]
[1771565809065,10.7942,83.416,83.372,5.74518707]
[1771565809266,5.91553003,83.417,83.372,5.74518707]
[1771565809872,5.91553003,83.417,83.36,9.21695855]
[1771565810273,5.91553003,83.417,83.364,5.74518707]
[1771565811373,10.7941,83.416,83.366,5.74518707]
[1771565811872,16.70963003,83.416,83.366,5.74518707]
[1771565814769,5.91553003,83.415,83.366,5.74518707]
[1771565815472,16.71003003,83.413,83.366,5.74518707]
[1771565815974,5.91553003,83.412,83.366,5.74518707]
[1771565816776,5.91553003,83.41,83.356,10.8017]
[1771565817176,5.91553003,83.41,83.357,5.74518707]
[1771565818672,10.7951,83.409,83.36,10.8013]
[1771565818873,16.71063003,83.409,83.361,5.74518707]
[1771565819780,5.91553003,83.408,83.362,10.801]
[1771565820975,9.02226607,83.42,83.371,5.74518707]
[1771565821181,5.91553003,83.409,83.37,3.10673604]
[1771565821376,5.91553003,83.409,83.361,5.74518707]
[1771565821577,5.91553003,83.399,83.35,3.10673604]
[1771565822077,8.64582502,83.398,83.343,5.74518707]
[1771565822285,3.10673604,83.4,83.352,5.74518707]
[1771565822475,5.91553003,83.412,83.361,5.74518707]
[1771565822675,29.19528373,83.474,83.306,21.6165]
[1771565822676,5.91553003,83.411,83.371,5.74518707]
[1771565822874,3.10673604,83.41,83.371,5.74518707]
[1771565823285,5.91553003,83.411,83.371,5.74518707]
[1771565825682,5.24351694,83.424,83.38,3.10673604]
[1771565825985,8.65246988,83.423,83.374,5.58088907]
[1771565826187,3.10673604,83.42,83.374,5.58088907]
[1771565826481,5.24351694,83.418,83.374,5.58088907]
[1771565826685,13.89719408,83.417,83.374,5.58088907]
[1771565826881,3.10673604,83.4,83.346,5.19066331]
[1771565827186,35.98,83.465,83.346,5.19066331]
[1771565827187,3.10673604,83.39,83.346,5.19066331]
[1771565827379,3.10673604,83.39,83.35,3.10673604]
[1771565827583,3.10673604,83.39,83.35,8.29739935]
[1771565827779,5.53885678,83.399,83.351,5.19066331]
[1771565827987,3.10673604,83.41,83.361,5.19066331]
[1771565829381,10.7941,83.416,83.361,5.19066331]
[1771565829685,10.7945,83.413,83.361,5.19066331]
[1771565830279,8.65730109,83.412,83.361,5.19066331]
[1771565830479,8.65895715,83.411,83.361,5.19066331]
[1771565830681,8.65895715,83.41,83.361,5.19066331]
[1771565830986,8.65895715,83.409,83.361,5.19066331]
[1771565831289,11.03229223,83.429,83.361,5.19066331]
[1771565831290,3.10673604,83.4,83.361,5.19066331]
[1771565831487,8.6617044,83.399,83.361,5.19066331]
[1771565831788,3.10673604,83.4,83.361,5.19066331]
[1771565832390,10.7956,83.405,83.361,5.19066331]
[1771565832685,5.53885678,83.407,83.361,5.19066331]
[1771565832886,8.66052537,83.406,83.361,5.19066331]
[1771565833190,8.66052537,83.405,83.361,5.19066331]
[1771565833390,8.66052537,83.404,83.361,5.19066331]
[1771565833590,5.53885678,83.407,83.361,5.19066331]
[1771565833793,8.66138564,83.406,83.361,5.19066331]
[1771565834088,8.66138564,83.405,83.361,5.19066331]
[1771565834390,8.66138564,83.404,83.361,5.19066331]
[1771565834692,5.53885678,83.407,83.361,5.19066331]
[1771565834888,8.66307303,83.406,83.361,5.19066331]
[1771565835084,8.66307303,83.405,83.361,5.19066331]
[1771565835286,8.66307303,83.404,83.361,5.19066331]
[1771565835487,3.10673604,83.4,83.361,5.19066331]
[1771565837587,8.66625162,83.399,83.361,5.19066331]
[1771565837788,3.10673604,83.4,83.361,5.19066331]
[1771565838089,10.7956,83.405,83.361,5.19066331]
[1771565838284,8.66549142,83.404,83.361,5.19066331]
[1771565838481,8.66549142,83.403,83.361,5.19066331]
[1771565838682,3.10673604,83.4,83.361,5.19066331]
[1771565839991,8.66559165,83.399,83.361,5.19066331]
[1771565840191,8.66559165,83.398,83.361,5.19066331]
[1771565840390,8.66559165,83.397,83.361,5.19066331]
[1771565840591,5.53885678,83.407,83.361,5.19066331]
[1771565840890,3.10673604,83.41,83.361,5.19066331]
[1771565840891,5.53885678,83.406,83.361,5.19066331]
[1771565841092,8.66444298,83.405,83.361,5.19066331]
[1771565841290,8.66444298,83.404,83.361,5.19066331]
[1771565841590,5.53885678,83.406,83.361,5.19066331]
[1771565841791,8.66443345,83.405,83.361,5.19066331]
[1771565842091,8.66443345,83.404,83.361,5.19066331]
[1771565842291,5.53885678,83.406,83.361,5.19066331]
[1771565842493,3.10673604,83.4,83.361,5.19066331]
[1771565843393,5.53885678,83.406,83.361,5.19066331]
[1771565843692,5.53885678,83.404,83.361,5.19066331]
[1771565843994,3.10673604,83.4,83.361,5.19066331]
[1771565846689,5.53885678,83.404,83.361,5.19066331]
[1771565846892,8.6643974,83.403,83.361,5.19066331]
[1771565847192,5.53885678,83.404,83.361,5.19066331]
[1771565847391,8.66427676,83.403,83.361,5.19066331]
[1771565847592,3.10673604,83.4,83.361,5.19066331]
[1771565850199,16.33325678,83.414,83.361,5.19066331]
[1771565850498,3.10673604,83.41,83.361,5.19066331]
[1771565850893,5.53885678,83.408,83.361,5.19066331]
[1771565851095,3.10673604,83.4,83.361,5.19066331]
[1771565851393,5.53885678,83.399,83.361,5.19066331]
[1771565851595,3.10673604,83.38,83.346,5.19066331]
[1771565851800,3.10673604,83.39,83.346,5.19066331]
[1771565852803,10.7967,83.397,83.351,5.19066331]
[1771565854295,16.33555678,83.397,83.351,5.19066331]
[1771565855299,5.53885678,83.396,83.351,5.19066331]
[1771565856302,5.53885678,83.429,83.381,5.19066331]
[1771565857800,3.10673604,83.42,83.381,5.19066331]
[1771565861307,3.10673604,83.44,83.391,5.38309066]
[1771565861609,8.27953435,83.43,83.391,5.38309066]
[1771565865804,5.17279831,83.43,83.391,5.38309066]
[1771565866311,31.41290744,83.454,83.379,5.38309066]
[1771565866312,5.17279831,83.419,83.379,5.38309066]
[1771565866701,5.17279831,83.419,83.38,3.10673604]
[1771565867112,5.17279831,83.419,83.381,5.38309066]
[1771565870110,5.17279831,83.417,83.381,5.38309066]
[1771565870314,5.17279831,83.417,83.371,5.38309066]
[1771565870508,10.7944,83.414,83.371,5.38309066]
[1771565870708,5.17279831,83.409,83.36,3.10673604]
[1771565871305,3.10673604,83.4,83.36,3.10673604]
[1771565871810,3.10673604,83.4,83.358,5.38309066]
[1771565872315,5.17279831,83.399,83.358,5.38309066]
[1771565872516,5.17279831,83.398,83.358,5.38309066]
[1771565873014,5.17279831,83.398,83.33,14.73657944]
[1771565873015,5.17279831,83.389,83.34,3.10673604]
[1771565873213,5.17279831,83.389,83.341,5.38309066]
[1771565874015,5.17279831,83.389,83.292,28.58550186]
[1771565874016,3.10673604,83.4,83.351,5.38309066]
[1771565874212,5.17279831,83.399,83.351,5.38309066]
[1771565874414,3.10673604,83.39,83.351,5.38309066]
[1771565876218,5.17279831,83.399,83.352,16.18539066]
[1771565876515,5.17279831,83.399,83.353,5.38309066]
[1771565877415,5.17279831,83.399,83.356,5.38309066]
[1771565877920,5.17279831,83.399,83.346,5.38309066]
[1771565878112,5.17279831,83.399,83.351,5.38309066]
[1771565878416,3.10785715,83.4,83.361,5.38309066]
[1771565878616,3.10785715,83.41,83.361,5.38309066]
[1771565879718,3.10785715,83.41,83.363,5.38309066]
[1771565879920,8.28065546,83.41,83.363,5.38309066]
[1771565880120,5.17279831,83.419,83.371,5.38309066]
[1771565881614,5.17279831,83.399,83.355,5.38309066]
[1771565881822,3.10785715,83.39,83.355,5.38309066]
[1771565884024,10.7953,83.407,83.361,5.15934355]
[1771565884620,3.10785715,83.41,83.361,5.15934355]
[1771565884822,5.00726081,83.412,83.371,5.15934355]
[1771565885022,3.10785715,83.41,83.371,5.15934355]
[1771565886723,5.00726081,83.431,83.371,5.15934355]
[1771565886916,3.10785715,83.42,83.381,5.25167419]
[1771565889427,5.17769939,83.429,83.383,5.25167419]
[1771565889826,3.10785715,83.42,83.383,5.25167419]
[1771565890325,5.17769939,83.442,83.39,3.10785715]
[1771565890527,3.10785715,83.43,83.391,5.25167419]
[1771565890827,5.17769939,83.429,83.391,5.25167419]
[1771565891419,5.17769939,83.439,83.391,5.25167419]
[1771565892029,10.7901,83.447,83.391,5.25167419]
[1771565892030,5.17769939,83.429,83.391,5.25167419]
[1771565893124,3.10785715,83.44,83.391,5.25167419]
[1771565893525,3.10785715,83.44,83.394,10.7969]
[1771565893731,3.10785715,83.44,83.395,5.25167419]
[1771565893932,5.17769939,83.454,83.411,5.25167419]
[1771565894231,5.17769939,83.467,83.421,5.25167419]
[1771565894726,5.17769939,83.48,83.426,5.25167419]
[1771565895032,5.17769939,83.48,83.431,5.25167419]
[1771565895033,8.28555654,83.48,83.431,5.25167419]
[1771565895226,5.17769939,83.469,83.42,8.35953134]
[1771565895528,5.17769939,83.469,83.382,35.98]
[1771565895529,5.17769939,83.482,83.431,5.25167419]
[1771565895729,3.10785715,83.48,83.431,5.25167419]
[1771565897026,5.17769939,83.469,83.421,5.25167419]
[1771565897227,5.17769939,83.469,83.43,3.10785715]
[1771565897525,5.17769939,83.469,83.421,5.25167419]
[1771565897733,3.10785715,83.48,83.431,5.25167419]
[1771565897933,8.28555654,83.48,83.431,5.25167419]
[1771565898935,5.17769939,83.479,83.431,5.25167419]
[1771565899231,5.17769939,83.469,83.421,5.25167419]
[1771565900333,5.17769939,83.469,83.368,35.98]
[1771565900334,5.17769939,83.469,83.43,3.10785715]
[1771565900537,5.17769939,83.459,83.412,5.25167419]
[1771565901235,5.17769939,83.449,83.4,8.35953134]
[1771565901529,5.17769939,83.449,83.401,5.25167419]
[1771565905838,3.10785715,83.44,83.401,5.25167419]
[1771565906037,8.28555654,83.44,83.401,5.25167419]
[1771565906940,5.17769939,83.419,83.379,10.7988]
[1771565907641,5.17769939,83.419,83.381,10.7986]
[1771565909044,3.10785715,83.43,83.387,10.7978]
[1771565909239,3.10785715,83.44,83.401,5.25167419]
[1771565909645,5.17769939,83.446,83.403,5.25167419]
[1771565910646,5.17769939,83.446,83.404,10.7956]
[1771565911244,5.17769939,83.446,83.403,5.25167419]
[1771565912045,3.10785715,83.45,83.403,5.25167419]
[1771565912747,5.17769939,83.439,83.39,8.35953134]
[1771565912952,3.10785715,83.45,83.401,5.25167419]
[1771565913139,5.17769939,83.449,83.401,5.25167419]
[1771565915445,10.79,83.448,83.401,5.25167419]
[1771565915647,15.96769939,83.448,83.401,5.25167419]
[1771565917748,4.90372817,83.439,83.401,5.25167419]
[1771565917950,4.90372817,83.439,83.392,10.7971]
[1771565918251,4.90372817,83.439,83.393,4.93616444]
[1771565918441,4.90372817,83.449,83.401,4.93616444]
[1771565919549,3.10785715,83.42,83.374,4.93616444]
[1771565920648,3.10785715,83.42,83.375,10.7993]
[1771565920849,3.10785715,83.42,83.376,4.93616444]
[1771565921350,3.10785715,83.42,83.378,10.799]